bitfinex-derivatives/quotes_BNBF0:USTF0_20250807
["timestamp","ask_amount","ask_price","bid_price","bid_amount"]
[1754526680315,0.78934718,770.53,769.04,1.7421447]
[1754526680518,0.78934718,770.52,769.06,1.7421447]
[1754526680720,0.78934718,770.51,769.06,1.7421447]
[1754526680921,0.78934718,770.5,769.06,1.7421447]
[1754526681121,0.78934718,770.49,769.06,1.7421447]
[1754526681321,0.78934718,770.48,769.07,1.7421447]
[1754526681521,0.78934718,770.47,769.07,1.7421447]
[1754526681723,0.78934718,770.46,769.08,1.7421447]
[1754526682017,0.78934718,770.45,769.08,1.7421447]
[1754526682219,0.78934718,770.44,769.09,1.7421447]
[1754526682420,0.78934718,770.43,769.09,1.7421447]
[1754526682618,0.78934718,770.42,769.09,1.7421447]
[1754526682822,0.78934718,770.41,769.09,1.7421447]
[1754526683019,0.78934718,770.4,769.09,1.7421447]
[1754526683220,0.78934718,770.39,769.1,1.7421447]
[1754526683524,0.78934718,770.38,769.19,1.7421447]
[1754526683723,0.78934718,770.37,769.19,1.7421447]
[1754526683923,0.78934718,770.36,769.19,1.7421447]
[1754526684221,0.78934718,770.35,769.2,1.7421447]
[1754526684424,0.78934718,770.34,769.2,1.7421447]
[1754526684620,0.78934718,770.33,769.2,1.7421447]
[1754526684922,0.78934718,770.32,769.2,1.7421447]
[1754526685225,0.78934718,770.31,769.22,1.7421447]
[1754526685424,0.78934718,770.3,769.22,1.7421447]
[1754526685624,0.78934718,770.29,769.22,1.7421447]
[1754526685824,0.78934718,770.28,769.22,1.7421447]
[1754526686024,0.78934718,770.27,769.22,1.7421447]
[1754526686221,0.78934718,770.26,769.23,1.7421447]
[1754526686425,0.78934718,770.25,769.23,1.7421447]
[1754526686625,0.87446663,770.48,769.23,1.7421447]
[1754526686824,0.7902254,770.47,769.23,1.7421447]
[1754526687122,0.7902254,770.46,769.23,1.7421447]
[1754526687321,0.7902254,770.45,769.25,1.7421447]
[1754526687626,0.7902254,770.44,769.26,1.7421447]
[1754526687821,0.7902254,770.43,769.26,1.7421447]
[1754526688121,0.7902254,770.42,769.26,1.7421447]
[1754526688320,0.7902254,770.42,768.99,1.161]
[1754526688321,0.7902254,770.41,769.28,1.7421447]
[1754526688524,0.7902254,770.4,769.28,1.7421447]
[1754526688724,0.7902254,770.39,769.28,1.7421447]
[1754526688920,0.7902254,770.38,769.28,1.7421447]
[1754526689123,0.7902254,770.37,769.28,1.7421447]
[1754526689323,0.7902254,770.36,769.29,1.7421447]
[1754526689523,0.7902254,770.35,769.29,1.7421447]
[1754526689725,0.7902254,770.34,769.29,1.7421447]
[1754526689921,0.7902254,770.33,769.29,1.7421447]
[1754526690124,0.7902254,770.32,769.29,1.7421447]
[1754526690324,0.7902254,770.31,769.31,1.7421447]
[1754526690524,0.7902254,770.3,769.31,1.7421447]
[1754526690726,0.7902254,770.29,769.31,1.7421447]
[1754526690922,0.7902254,770.28,769.31,1.7421447]
[1754526691126,0.7902254,770.27,769.31,1.7421447]
[1754526691328,0.7902254,770.26,769.33,1.7421447]
[1754526691528,0.7902254,770.25,769.33,1.7421447]
[1754526691728,0.7902254,770.24,769.33,1.7421447]
[1754526691927,0.87446663,770.46,769.33,1.7421447]
[1754526692224,0.7912419,770.45,769.35,1.7421447]
[1754526692428,0.7912419,770.44,769.35,1.7421447]
[1754526692728,0.7912419,770.43,769.35,1.7421447]
[1754526692925,0.7912419,770.42,769.35,1.7421447]
[1754526693227,0.7912419,770.41,769.38,1.7421447]
[1754526693429,0.7912419,770.4,769.38,1.7421447]
[1754526693628,0.7912419,770.39,769.38,1.7421447]
[1754526693923,0.7912419,770.38,769.38,1.7421447]
[1754526694128,0.7912419,770.37,769.4,1.7421447]
[1754526694328,0.7912419,770.36,769.4,1.7421447]
[1754526694624,0.7912419,770.35,769.4,1.7421447]
[1754526694830,0.7912419,770.34,769.4,1.7421447]
[1754526695026,0.7912419,770.33,769.4,1.7421447]
[1754526695232,0.7912419,770.32,769.43,1.7421447]
[1754526695527,0.7912419,770.31,769.43,1.7421447]
[1754526695727,0.7912419,770.3,769.43,1.7421447]
[1754526695931,0.7912419,770.29,769.43,1.7421447]
[1754526696130,0.7912419,770.28,769.43,1.7421447]
[1754526696344,0.7912419,770.27,769.47,1.7421447]
[1754526696541,0.7912419,770.26,769.47,1.7421447]
[1754526696729,0.7912419,770.25,769.47,1.7421447]
[1754526696942,0.7912419,770.24,769.47,1.7421447]
[1754526697141,0.7912419,770.23,769.5,1.7421447]
[1754526697340,0.7912419,770.22,769.5,1.7421447]
[1754526697539,0.7912419,770.21,769.5,1.7421447]
[1754526697739,0.87446663,770.43,769.5,1.7421447]
[1754526697939,0.79339593,770.42,769.5,1.7421447]
[1754526698244,0.79339593,770.41,769.51,1.7421447]
[1754526698441,0.79339593,770.4,769.51,1.7421447]
[1754526698640,0.79339593,770.39,769.51,1.7421447]
[1754526698843,0.79339593,770.38,769.51,1.7421447]
[1754526699044,0.79339593,770.37,769.51,1.7421447]
[1754526699245,0.79339593,770.36,769.52,1.7421447]
[1754526699444,0.79339593,770.35,769.52,1.7421447]
[1754526699739,0.79339593,770.34,769.52,1.7421447]
[1754526699945,0.79339593,770.33,769.52,1.7421447]
[1754526700145,0.79339593,770.32,769.52,1.7421447]
[1754526700346,0.79339593,770.31,769.54,1.7421447]
[1754526700541,0.79339593,770.3,769.54,1.7421447]
[1754526700746,0.79339593,770.29,769.54,1.7421447]
[1754526700946,0.79339593,770.28,769.54,1.7421447]
[1754526701144,0.79339593,770.27,769.54,1.7421447]
[1754526701345,0.79339593,770.26,769.56,1.7421447]
[1754526701548,0.79339593,770.25,769.56,1.7421447]
[1754526701751,0.79339593,770.24,769.56,1.7421447]
[1754526701949,0.79339593,770.23,769.56,1.7421447]
[1754526702249,0.79339593,770.22,769.58,1.7421447]
[1754526702449,0.79339593,770.21,769.58,1.7421447]
[1754526702649,0.79339593,770.2,769.58,1.7421447]
[1754526702946,0.87446663,770.36,769.58,1.7421447]
[1754526702947,0.79339593,770.19,769.58,1.7421447]
[1754526703150,0.79339593,770.18,769.59,1.7421447]
[1754526703446,0.79339593,770.17,769.59,1.7421447]
[1754526703644,0.79339593,770.16,769.59,1.7421447]
[1754526703850,0.79339593,770.15,769.59,1.7421447]
[1754526704149,0.79339593,770.14,769.59,1.7421447]
[1754526704449,0.79339593,770.13,769.53,1.7421447]
[1754526704650,0.79339593,770.12,769.53,1.7421447]
[1754526704845,0.87446663,770.37,769.53,1.7421447]
[1754526705049,0.79532055,770.36,769.53,1.7421447]
[1754526705346,0.79532055,770.35,769.54,1.7421447]
[1754526705549,0.79532055,770.34,769.54,1.7421447]
[1754526705749,0.79532055,770.33,769.54,1.7421447]
[1754526705950,0.79532055,770.32,769.54,1.7421447]
[1754526706150,0.79532055,770.31,769.53,1.7421447]
[1754526706351,0.79532055,770.3,769.53,1.7421447]
[1754526706652,0.79532055,770.29,769.53,1.7421447]
[1754526706952,0.79532055,770.28,769.53,1.7421447]
[1754526707253,0.79532055,770.27,769.54,1.7421447]
[1754526707445,0.79532055,770.26,769.55,1.7421447]
[1754526707752,0.79532055,770.25,769.23,1.7421447]
[1754526707945,0.87446663,770.53,769.23,1.7421447]
[1754526707946,0.79532055,770.24,769.23,1.7421447]
[1754526708245,0.87446663,770.53,769.23,1.7421447]
[1754526708246,0.79532055,770.23,769.23,1.7421447]
[1754526708553,0.79532055,770.22,769.23,1.7421447]
[1754526708752,0.79532055,770.21,769.23,1.7421447]
[1754526708952,0.79532055,770.2,769.23,1.7421447]
[1754526709247,0.79532055,770.19,769.23,1.7421447]
[1754526709452,0.79532055,770.18,769.23,1.7421447]
[1754526709654,0.87446663,770.53,769.23,1.7421447]
[1754526709655,0.79532055,770.17,769.23,1.7421447]
[1754526709853,0.79532055,770.16,769.23,1.7421447]
[1754526710052,0.79532055,770.15,769.23,1.7421447]
[1754526710351,0.79532055,770.14,769.23,1.7421447]
[1754526710553,0.79532055,770.13,769.23,1.7421447]
[1754526710753,0.79532055,770.12,769.23,1.7421447]
[1754526711050,0.79532055,770.11,769.23,1.7421447]
[1754526711249,0.79532055,770.1,769.23,1.7421447]
[1754526711452,0.79532055,770.09,769.23,1.7421447]
[1754526711748,0.87446663,770.53,769.23,1.7421447]
[1754526711952,0.79556425,770.52,769.23,1.7421447]
[1754526712151,0.79556425,770.51,769.23,1.7421447]
[1754526712352,0.79556425,770.5,769.23,1.7421447]
[1754526712552,0.79556425,770.49,769.23,1.7421447]
[1754526712753,0.79556425,770.48,769.23,1.7421447]
[1754526712953,0.79556425,770.47,769.23,1.7421447]
[1754526713251,0.79556425,770.46,769.23,1.7421447]
[1754526713550,0.79556425,770.45,769.23,1.7421447]
[1754526713748,0.79556425,770.44,769.23,1.7421447]
[1754526713952,0.79556425,770.43,769.23,1.7421447]
[1754526714149,0.79555859,770.42,769.21,1.7421447]
[1754526714450,0.79555859,770.41,769.22,1.7421447]
[1754526714650,0.79555859,770.4,769.22,1.7421447]
[1754526714955,0.79555859,770.39,769.22,1.7421447]
[1754526715152,0.79555859,770.38,769.22,1.7421447]
[1754526715350,0.79555859,770.37,769.22,1.7421447]
[1754526715654,0.79555859,770.36,769.22,1.7421447]
[1754526715853,0.79555859,770.35,769.13,1.7421447]
[1754526716052,0.79555859,770.34,769.27,1.7421447]
[1754526716355,0.79555859,770.33,769.28,1.7421447]
[1754526716552,0.79555859,770.32,769.29,1.7421447]
[1754526716756,0.79555859,770.31,769.29,1.7421447]
[1754526716956,0.79555859,770.31,768.99,1.161]
[1754526716957,0.79555859,770.3,769.35,1.7421447]
[1754526717153,0.79555859,770.29,769.37,1.7421447]
[1754526717357,0.79555859,770.28,769.37,1.7421447]
[1754526717552,0.79555859,770.27,769.36,1.7421447]
[1754526717857,0.79555859,770.26,769.36,1.7421447]
[1754526718057,0.79555859,770.25,769.4,1.7421447]
[1754526718253,2.9127533,772.07,768.99,1.161]
[1754526718254,0.87512881,770.64,769.37,1.7421447]
[1754526718455,0.79522233,770.63,769.4,1.7421447]
[1754526718757,0.79522233,770.62,769.48,1.7421447]
[1754526718957,0.87512881,770.73,769.48,1.7421447]
[1754526718958,0.79522233,770.61,769.48,1.7421447]
[1754526719156,0.79522233,770.6,769.47,1.7421447]
[1754526719354,0.79522233,770.59,769.46,1.7421447]
[1754526719552,0.79522233,770.58,769.46,1.7421447]
[1754526719853,0.79522233,770.57,769.47,1.7421447]
[1754526720058,0.79522233,770.56,769.51,1.7421447]
[1754526720258,0.79522233,770.55,769.57,1.7421447]
[1754526720559,0.79522233,770.54,769.57,1.7421447]
[1754526720753,0.79522233,770.53,769.57,1.7421447]
[1754526720956,0.79522233,770.52,769.57,1.7421447]
[1754526721154,0.79522233,770.51,769.58,1.7421447]
[1754526721358,0.79522233,770.5,769.56,1.7421447]
[1754526721658,0.79522233,770.49,769.56,1.7421447]
[1754526721957,0.79522233,770.48,769.56,1.7421447]
[1754526722254,0.79522233,770.47,769.54,1.7421447]
[1754526722454,0.87512881,770.88,769.54,1.7421447]
[1754526722657,0.7941001,770.87,769.54,1.7421447]
[1754526722957,0.7941001,770.86,769.54,1.7421447]
[1754526723157,0.87512881,770.89,769.76,1.1628246]
[1754526724253,0.87512881,770.9,769.75,1.1628246]
[1754526725152,0.87512881,770.92,769.74,1.1628246]
[1754526726357,0.87512881,770.92,769.73,1.1628246]
[1754526726758,0.87512881,770.93,769.72,1.1628246]
[1754526727861,0.87512881,770.9,769.76,1.1628246]
[1754526728161,0.87512881,770.85,769.83,1.1628246]
[1754526728658,0.87512881,770.84,769.83,1.1628246]
[1754526729260,0.87512881,770.85,769.82,1.1628246]
[1754526729461,0.87512881,770.84,769.82,1.1628246]
[1754526729662,0.87512881,770.84,769.83,1.1628246]
[1754526730360,0.87512881,770.86,769.8,1.1628246]
[1754526731360,0.87512881,770.86,769.79,1.1628246]
[1754526731864,0.87512881,770.85,769.82,1.1628246]
[1754526732165,0.87512881,770.86,769.79,1.1628246]
[1754526732762,0.87512881,770.9,769.84,1.1628246]
[1754526732961,0.87512881,770.91,769.84,1.1628246]
[1754526733365,0.87512881,770.91,769.83,1.1628246]
[1754526733765,0.87512881,770.89,769.86,1.1628246]
[1754526734166,0.87512881,770.89,769.85,1.1628246]
[1754526735368,0.87512881,770.89,769.84,1.1628246]
[1754526736268,0.87512881,770.92,769.82,1.1628246]
[1754526736564,0.87512881,770.91,769.83,1.1628246]
[1754526737261,0.87512881,770.91,769.82,1.1628246]
[1754526738169,0.87512881,770.91,769.81,1.1628246]
[1754526739170,0.87512881,770.91,769.8,1.1628246]
[1754526740270,1.1651013,771.05,769.82,1.1628246]
[1754526740565,0.87039704,770.92,769.82,1.1628246]
[1754526740770,0.87039704,770.94,769.79,1.1628246]
[1754526741164,0.87039704,770.94,769.78,1.1628246]
[1754526741369,0.87039704,770.95,769.78,1.1628246]
[1754526741670,0.87039704,770.94,769.78,1.1628246]
[1754526743371,0.87039704,770.94,769.61,1.7421447]
[1754526743372,0.87039704,770.94,769.77,1.1628246]
[1754526743671,0.87039704,770.94,769.78,1.1628246]
[1754526744370,0.87039704,770.94,769.77,1.1628246]
[1754526744572,0.87039704,770.93,769.78,1.1628246]
[1754526745367,0.87039704,770.93,769.77,1.1628246]
[1754526746069,0.87039704,770.94,769.77,1.1628246]
[1754526746369,0.87039704,770.95,769.77,1.1628246]
[1754526746574,0.87039704,770.99,769.81,1.1628246]
[1754526747176,0.87039704,771.17,769.57,1.1628246]
[1754526747370,0.87039704,771.34,769.69,1.1628246]
[1754526747569,0.22577244,771.21,769.69,1.1628246]
[1754526748373,0.22577244,771.21,769.67,1.1628246]
[1754526748574,0.22577244,771.21,769.66,1.1628246]
[1754526749170,0.22577244,771.21,769.65,1.1628246]
[1754526750172,0.22577244,771.21,769.63,1.1628246]
[1754526750772,0.22577244,771.21,769.67,1.1628246]
[1754526751176,0.22577244,771.21,769.68,1.068]
[1754526755982,0.22577244,771.21,769.68,2.2308246]
[1754526756177,0.22577244,771.21,769.69,1.1628246]
[1754526756378,0.22577244,771.21,769.68,1.068]
[1754526756379,0.87039704,771.1,769.68,1.068]
[1754526756878,0.87039704,771.11,769.68,1.068]
[1754526759581,0.87039704,771.1,769.68,1.068]
[1754526760783,0.87039704,771.09,769.68,1.068]
[1754526761185,0.22577244,771.21,769.68,1.068]
[1754526761381,0.86905947,771.09,769.68,1.068]
[1754526762082,0.86905947,771.15,769.68,1.068]
[1754526762285,0.86905947,771.14,769.59,1.1628246]
[1754526762580,0.86905947,771.11,769.64,1.1628246]
[1754526762885,0.86905947,771.12,769.65,1.1628246]
[1754526763283,0.86905947,771.12,769.66,1.1628246]
[1754526764186,0.22577244,771.21,768.95,0.2261282]
[1754526764187,0.86905947,771.1,769.68,1.1628246]
[1754526764383,0.86905947,771.1,769.69,1.1628246]
[1754526765190,0.86905947,771.1,769.7,2.1078246]
[1754526765893,0.86905947,771.08,769.72,1.1628246]
[1754526766389,0.86905947,771.08,769.73,1.1628246]
[1754526766790,0.86905947,771.09,769.74,1.1628246]
[1754526766995,0.86905947,771.08,769.74,1.1628246]
[1754526767196,0.86905947,771.09,769.75,1.1628246]
[1754526767496,0.86905947,771.15,769.82,1.1628246]
[1754526768293,0.86905947,771.14,769.83,1.1628246]
[1754526769293,0.86905947,771.14,769.84,1.1628246]
[1754526769598,0.22577244,771.21,769.75,1.1628246]
[1754526769799,0.22577244,771.21,769.82,1.1628246]
[1754526770295,0.22577244,771.21,769.7,0.945]
[1754526770296,0.22577244,771.21,769.83,1.1628246]
[1754526770700,0.86905947,771.3,769.88,1.1628246]
[1754526771199,0.86905947,771.3,769.89,1.1628246]
[1754526771399,0.86905947,771.32,769.87,1.1628246]
[1754526772093,0.86905947,771.32,769.86,1.1628246]
[1754526772295,0.86905947,771.31,769.88,1.1628246]
[1754526773302,0.86905947,771.31,769.9,1.1628246]
[1754526774298,0.86905947,771.31,769.91,1.1628246]
[1754526774697,0.86905947,771.31,769.92,1.1628246]
[1754526775201,0.86905947,771.31,769.94,1.1628246]
[1754526775397,0.86905947,771.29,769.92,1.1628246]
[1754526776201,0.86905947,771.29,769.95,1.1628246]
[1754526777005,0.86905947,771.28,769.95,1.1628246]
[1754526777403,0.86905947,771.28,769.96,1.1628246]
[1754526778305,0.86905947,771.28,769.98,1.1628246]
[1754526778906,0.86905947,771.29,769.96,1.1628246]
[1754526779304,0.86905947,771.29,769.97,1.1628246]
[1754526779506,0.86905947,771.25,770.02,1.1628246]
[1754526780203,0.86905947,771.25,770.03,1.162]
[1754526780507,0.86905947,771.21,770.07,1.1628246]
[1754526783505,0.86905947,771.22,770.06,1.1628246]
[1754526783804,0.86905947,771.22,770.05,1.1628246]
[1754526785009,0.86905947,771.18,770.1,1.1628246]
[1754526786205,0.86905947,771.18,770.11,1.1628246]
[1754526786609,0.86905947,771.18,770.1,1.1628246]
[1754526787210,0.86905947,771.18,770.11,1.1628246]
[1754526787810,0.86905947,771.24,770.17,1.1628246]
[1754526788007,0.86905947,771.26,770.14,1.1628246]
[1754526788711,0.86905947,771.24,770.17,1.1628246]
[1754526790107,0.86905947,771.24,770.16,1.1628246]
[1754526790411,0.86905947,771.24,770.17,1.1628246]
[1754526791008,0.86905947,771.25,770.18,1.1628246]
[1754526793014,0.86905947,771.27,770.17,1.1628246]
[1754526793416,0.22570289,771.44,770.03,1.162]
[1754526793417,0.86905947,771.26,770.18,1.1628246]
[1754526793615,0.86905947,771.25,770.18,1.1628246]
[1754526794913,0.86905947,771.25,770.19,1.1628246]
[1754526795713,0.86905947,771.24,770.19,1.1628246]
[1754526796118,0.86905947,771.25,770.19,1.1628246]
[1754526796319,0.86905947,771.24,770.2,1.1628246]
[1754526796522,0.22570289,771.44,770.03,1.162]
[1754526796523,0.86905947,771.25,770.19,1.1628246]
[1754526797018,0.86905947,771.25,770.2,1.1628246]
[1754526798119,0.86905947,771.23,770.22,1.1628246]
[1754526798516,0.86905947,771.28,770.17,1.1628246]
[1754526799124,0.22570289,771.44,770.17,1.1628246]
[1754526799125,0.86905947,771.29,770.17,1.1628246]
[1754526799417,0.86905947,771.28,770.18,1.1628246]
[1754526802924,0.86905947,771.27,770.19,1.1628246]
[1754526803324,0.86905947,771.26,770.2,1.1628246]
[1754526804126,0.86905947,771.27,770.2,1.1628246]
[1754526804324,0.86905947,771.26,770.2,1.1628246]
[1754526805728,0.86905947,771.26,770.21,1.1628246]
[1754526805926,0.87237453,771.26,770.21,1.1628246]
[1754526806425,0.87237453,771.25,770.22,1.1628246]
[1754526807431,0.87237453,771.25,770.21,1.1628246]
[1754526808530,0.87237453,771.2,770.28,1.1628246]
[1754526810130,0.87237453,771.19,770.29,1.1628246]
[1754526810331,0.87237453,771.19,770.28,1.1628246]
[1754526811530,0.87237453,771.18,770.29,1.1628246]
[1754526811729,0.87237453,771.24,770.22,1.1628246]
[1754526812127,1.1651013,771.42,770.23,1.1628246]
[1754526812128,0.87237453,771.23,770.23,1.1628246]
[1754526813133,0.87237453,771.22,770.21,1.1628246]
[1754526813628,0.87237453,771.21,770.22,1.1628246]
[1754526817932,0.87237453,771.21,770.23,1.1628246]
[1754526818336,0.87237453,771.2,770.23,1.1628246]
[1754526819337,0.87237453,771.19,770.24,1.1628246]
[1754526819936,0.87237453,771.2,770.23,1.1628246]
[1754526821238,0.87237453,771.19,770.24,1.1628246]
[1754526821534,0.87237453,771.16,770.28,1.1628246]
[1754526822436,0.87237453,771.15,770.29,1.1628246]
[1754526822738,0.87237453,771.17,770.3,1.1628246]
[1754526823238,0.87237453,771.16,770.31,1.1628246]
[1754526823442,0.87237453,771.17,770.31,1.1628246]
[1754526824238,0.87237453,771.16,770.31,1.1628246]
[1754526824441,0.87237453,771.16,770.32,1.1628246]
[1754526825343,0.87237453,771.18,770.3,1.1628246]
[1754526826244,0.87237453,771.17,770.31,1.1628246]
[1754526826739,0.87237453,771.19,770.28,1.1628246]
[1754526827145,0.87237453,771.18,770.29,1.1628246]
[1754526827841,0.87237453,771.21,770.32,1.1628246]
[1754526828247,0.87237453,771.21,770.33,1.1628246]
[1754526829946,0.87237453,771.19,770.34,1.1628246]
[1754526830150,0.87237453,771.19,770.35,1.1628246]
[1754526830651,0.87237453,771.21,770.36,1.1628246]
[1754526833855,0.22570289,771.44,770.37,1.1628246]
[1754526833856,0.87237453,771.2,770.37,1.1628246]
[1754526834554,0.87237453,771.2,770.36,1.1628246]
[1754526834854,0.87237453,771.2,770.37,1.1628246]
[1754526835050,0.87237453,771.2,770.36,1.1628246]
[1754526835352,0.87237453,771.18,770.39,1.1628246]
[1754526836357,0.87237453,771.15,770.44,1.1628246]
[1754526837457,0.87237453,771.15,770.45,1.023]
[1754526837756,0.87237453,771.14,770.45,2.1858246]
[1754526838152,0.87237453,771.15,770.45,1.023]
[1754526838352,0.87237453,771.14,770.45,2.1858246]
[1754526838653,0.87237453,771.14,770.45,1.023]
[1754526838954,0.87237453,771.12,770.47,1.1628246]
[1754526840355,0.87237453,771.13,770.46,1.1628246]
[1754526840856,0.87237453,771.12,770.47,1.1628246]
[1754526843060,0.87237453,771.13,770.47,1.1628246]
[1754526843560,0.87237453,771.12,770.47,1.1628246]
[1754526846161,0.87237453,771.11,770.48,1.1628246]
[1754526847061,0.87237453,771.11,770.49,1.1628246]
[1754526847358,0.87237453,771.11,770.48,1.1628246]
[1754526847557,0.87237453,771.11,770.49,1.1628246]
[1754526847757,0.87237453,771.14,770.49,1.1628246]
[1754526848958,0.87237453,771.13,770.5,1.1628246]
[1754526849257,0.87237453,771.12,770.52,1.1628246]
[1754526849458,0.87237453,771.74,770.45,1.023]
[1754526849658,0.22564069,771.69,770.45,1.023]
[1754526849862,0.87237453,771.68,770.49,1.1628246]
[1754526850062,1.09801522,771.69,770.5,1.1628246]
[1754526850258,0.22564069,771.69,770.46,1.1628246]
[1754526850761,0.22564069,771.69,770.47,1.1628246]
[1754526851261,0.22564069,771.69,770.45,2.1858246]
[1754526851757,0.22564069,771.69,770.48,1.1628246]
[1754526852357,0.22564069,771.69,770.46,1.1628246]
[1754526852762,0.22564069,771.69,770.48,1.1628246]
[1754526853061,0.87237453,771.5,770.74,1.1628246]
[1754526853256,0.87237453,771.55,770.69,1.1628246]
[1754526853457,0.87237453,771.65,770.56,1.1628246]
[1754526854164,0.22564069,771.69,770.45,1.023]
[1754526854359,0.87237453,771.64,770.45,1.023]
[1754526855465,0.87237453,771.65,770.45,1.023]
[1754526856263,0.87237453,771.63,770.45,1.023]
[1754526857560,0.87237453,771.63,770.32,1.1628246]
[1754526857959,0.87237453,771.62,770.33,1.1628246]
[1754526858164,0.87237453,771.61,770.35,1.1628246]
[1754526858462,0.87237453,771.63,770.32,1.1628246]
[1754526859161,0.87237453,771.63,770.31,1.1628246]
[1754526861265,0.87237453,771.63,770.3,1.1628246]
[1754526861466,0.87237453,771.63,770.32,0.751]
[1754526862167,0.87237453,771.64,770.32,0.751]
[1754526862367,0.87237453,771.63,770.32,0.751]
[1754526862770,0.87237453,771.58,770.36,1.1628246]
[1754526863566,0.87237453,771.57,770.35,1.1628246]
[1754526863764,0.87237453,771.57,770.32,0.751]
[1754526863765,0.87237453,771.49,770.32,0.751]
[1754526864365,0.87237453,771.48,770.32,0.751]
[1754526870967,0.87237453,771.45,770.33,1.1628246]
[1754526871173,0.87237453,771.4,770.32,0.751]
[1754526871569,0.87237453,771.44,770.32,0.751]
[1754526872472,0.87237453,771.44,770.23,1.1628246]
[1754526873369,0.87237453,771.44,770.24,1.1628246]
[1754526874074,0.87237453,771.42,770.26,1.1628246]
[1754526874269,0.87237453,771.42,770.27,1.1628246]
[1754526875575,0.87237453,771.42,770.28,0.905]
[1754526876175,0.87237453,771.42,770.28,2.0678246]
[1754526877174,0.87237453,771.41,770.28,2.0678246]
[1754526877573,0.87237453,771.42,770.28,2.0678246]
[1754526879176,0.87237453,771.41,770.28,2.0678246]
[1754526880875,0.87237453,771.4,770.29,1.1628246]
[1754526881276,0.87237453,771.34,770.36,1.1628246]
[1754526881475,0.87237453,771.34,770.35,1.1628246]
[1754526881980,0.87237453,771.33,770.37,1.1628246]
[1754526882376,0.87237453,771.31,770.35,1.1628246]
[1754526883277,0.87237453,771.3,770.35,1.1628246]
[1754526884081,0.87237453,771.31,770.35,1.1628246]
[1754526885183,0.87237453,771.3,770.35,1.1628246]
[1754526886981,0.87237453,771.29,770.36,1.1628246]
[1754526887481,0.87237453,771.27,770.39,1.1628246]
[1754526887881,0.87237453,771.36,770.28,0.905]
[1754526888085,0.87237453,771.31,770.28,0.905]
[1754526888385,0.87237453,771.29,770.28,0.905]
[1754526889987,0.87214697,771.29,770.28,0.905]
[1754526896584,0.87214697,771.3,770.28,0.905]
[1754526896785,0.87214697,771.19,770.34,1.1628246]
[1754526897088,0.87214697,771.19,770.33,1.1628246]
[1754526897885,0.87214697,771.19,770.34,1.1628246]
[1754526898587,0.87214697,771.18,770.35,1.1628246]
[1754526898784,0.87214697,771.19,770.34,1.1628246]
[1754526902786,0.87214697,771.34,770.28,0.905]
[1754526903791,0.87214697,771.35,770.28,0.905]
[1754526904491,0.87214697,771.42,770.28,0.905]
[1754526905691,0.87214697,771.33,770.28,0.905]
[1754526906389,0.87214697,771.35,770.28,0.905]
[1754526906592,0.87214697,771.23,770.28,0.905]
[1754526906790,0.87214697,771.24,770.28,0.905]
[1754526906990,0.87214697,771.18,770.28,0.905]
[1754526907491,0.87214697,771.19,770.28,0.905]
[1754526907792,0.87214697,771.17,770.28,0.905]
[1754526907993,0.87214697,771.2,770.34,1.1628246]
[1754526908289,0.87214697,771.21,770.35,1.1628246]
[1754526908590,0.87214697,771.25,770.39,1.1628246]
[1754526908790,0.87214697,771.28,770.36,1.1628246]
[1754526909791,0.87214697,771.37,770.45,1.1628246]
[1754526909995,0.87214697,771.42,770.38,1.1628246]
[1754526910190,0.87214697,771.48,770.46,1.1628246]
[1754526910492,0.87214697,771.53,770.52,1.1628246]
[1754526910691,0.87214697,771.57,770.55,1.1628246]
[1754526911291,0.87214697,771.56,770.55,1.1628246]
[1754526912195,0.87214697,771.57,770.55,1.1628246]
[1754526912397,0.87214697,771.58,770.54,1.1628246]
[1754526912894,0.87214697,771.59,770.56,1.1628246]
[1754526914094,0.87214697,771.6,770.56,1.1628246]
[1754526914396,0.87214697,771.63,770.52,1.1628246]
[1754526914597,0.87214697,771.7,770.45,1.1628246]
[1754526914999,0.87214697,771.7,770.56,1.1628246]
[1754526915192,0.87214697,771.81,770.54,1.1628246]
[1754526915397,0.87214697,771.82,770.54,1.1628246]
[1754526915592,0.22558365,771.83,770.52,1.1628246]
[1754526915995,0.22558365,771.83,770.53,1.1628246]
[1754526916193,0.22558365,771.83,770.52,1.1628246]
[1754526916394,0.22558365,771.83,770.51,1.1628246]
[1754526917199,0.22558365,771.83,770.49,1.1628246]
[1754526918201,0.22558365,771.83,770.48,1.1628246]
[1754526918397,0.22558365,771.83,770.47,1.1628246]
[1754526919203,0.22558365,771.83,770.46,1.1628246]
[1754526919802,0.22558365,771.83,770.47,1.1628246]
[1754526920297,0.22558365,771.83,770.46,1.1628246]
[1754526921203,0.22558365,771.83,770.45,1.1628246]
[1754526922203,0.22558365,771.83,770.44,1.1628246]
[1754526922404,0.22558365,771.83,770.43,1.1628246]
[1754526922704,0.22558365,771.83,770.46,1.1628246]
[1754526923104,0.22558365,771.83,770.47,0.907]
[1754526924305,0.22558365,771.83,770.48,1.1628246]
[1754526925401,0.87214697,771.8,770.52,1.1628246]
[1754526926200,0.87214697,771.8,770.51,1.1628246]
[1754526926406,0.87214697,771.8,770.5,1.1628246]
[1754526927401,0.87214697,771.8,770.49,1.1628246]